bitfinex-derivatives/quotes_BTCF0:USTF0_20230702
["timestamp","ask_amount","ask_price","bid_price","bid_amount"]
[1688336849056,0.22489531,30781.0,30776.0,0.05]
[1688336849253,0.25122199,30790.0,30787.0,0.05]
[1688336849559,0.00067277,30795.0,30794.0,1.0]
[1688336849743,0.3608,30809.0,30799.0,1.0]
[1688336849947,0.3608,30806.0,30800.0,0.25610581]
[1688336850147,0.07978866,30808.0,30805.0,0.3637]
[1688336850363,0.425708,30813.0,30808.0,0.05]
[1688336850562,0.425708,30813.0,30807.0,0.3608]
[1688336850563,0.019472,30814.0,30812.0,0.05]
[1688336850851,0.06995772,30818.0,30813.0,3.11087914]
[1688336851054,0.3608,30818.0,30817.0,0.3637]
[1688336851257,0.065,30814.0,30812.0,0.00048677]
[1688336851444,0.065,30806.0,30805.0,0.019]
[1688336851758,0.0065,30804.0,30799.0,0.3608]
[1688336851947,0.383179,30802.0,30797.0,0.3637]
[1688336852146,0.3608,30800.0,30798.0,0.01822969]
[1688336852344,0.3608,30800.0,30795.0,0.3637]
[1688336852345,0.03912621,30801.0,30799.0,0.3637]
[1688336852570,0.03912621,30801.0,30795.0,0.3637]
[1688336852571,0.019479,30801.0,30800.0,0.33332969]
[1688336852861,0.0065,30800.0,30788.0,0.8166]
[1688336853048,0.380279,30801.0,30785.0,0.3603]
[1688336853049,0.3608,30794.0,30785.0,0.3603]
[1688336853362,0.3637,30788.0,30783.0,0.3621]
[1688336853543,0.04335268,30787.0,30776.0,1.2325]
[1688336853860,0.36208731,30785.0,30778.0,0.00048731]
[1688336854052,0.01193625,30784.0,30783.0,0.019]
[1688336854249,0.01448731,30785.0,30783.0,1.0421]
[1688336854555,0.123449,30796.0,30787.0,0.2506]
[1688336854767,0.065,30795.0,30788.0,0.6551]
[1688336854947,0.03173403,30794.0,30785.0,0.6551]
[1688336855144,0.3716961,30795.0,30792.0,0.2506]
[1688336855361,0.00048712,30797.0,30796.0,0.2506]
[1688336855548,0.3608,30807.0,30800.0,0.2506]
[1688336855749,0.3608,30807.0,30804.0,0.6527]
[1688336855750,0.00048696,30807.0,30804.0,0.6527]
[1688336856066,0.065,30806.0,30800.0,0.25108696]
[1688336856357,0.00048696,30807.0,30804.0,0.6551]
[1688336856546,0.01458355,30806.0,30805.0,0.03707914]
[1688336856749,0.01458355,30806.0,30805.0,0.01884945]
[1688336856955,0.01458355,30806.0,30797.0,0.3608]
[1688336856956,0.065,30802.0,30792.0,0.2506]
[1688336857161,0.0065,30792.0,30783.0,0.270091]
[1688336857459,0.0065,30788.0,30783.0,0.2506]
[1688336857676,0.3608,30786.0,30783.0,0.019]
[1688336857952,0.45677167,30787.0,30783.0,0.019]
[1688336858152,0.0034418,30785.0,30783.0,0.019]
[1688336858357,0.38603403,30787.0,30784.0,0.01884945]
[1688336858563,0.38603403,30787.0,30781.0,0.65558726]
[1688336858564,0.01760095,30786.0,30781.0,0.00048726]
[1688336858857,0.0065,30782.0,30781.0,0.00048726]
[1688336859060,0.02410095,30782.0,30781.0,0.00048726]
[1688336859249,0.0065,30782.0,30781.0,0.00048726]
[1688336859452,0.3608,30784.0,30781.0,0.00048726]
[1688336859647,0.00048726,30788.0,30786.0,0.2506]
[1688336859854,0.00048726,30788.0,30786.0,0.9056]
[1688336860058,0.00048726,30788.0,30785.0,0.069489]
[1688336860059,0.36369626,30787.0,30785.0,0.2506]
[1688336860372,0.76293498,30786.0,30781.0,0.00048726]
[1688336860658,0.065,30779.0,30770.0,0.25633417]
[1688336860864,2.3767,30782.0,30770.0,0.25633417]
[1688336860865,0.3608,30772.0,30770.0,0.25633417]
[1688336861068,0.04933498,30771.0,30763.0,0.270103]
[1688336861362,0.0716,30767.0,30763.0,0.270103]
[1688336861547,0.0716,30767.0,30764.0,0.01933699]
[1688336861859,0.0716,30767.0,30765.0,0.00859349]
[1688336862061,0.1016,30767.0,30765.0,0.02744294]
[1688336862359,0.03,30767.0,30766.0,1.0159]
[1688336862659,0.00048754,30770.0,30769.0,0.2506]
[1688336862958,0.065,30786.0,30778.0,0.270094]
[1688336863162,0.3608,30790.0,30788.0,0.2506]
[1688336863354,0.0065,30792.0,30788.0,0.2506]
[1688336863554,0.3608,30789.0,30788.0,0.2506]
[1688336863752,0.3673,30789.0,30788.0,0.2506]
[1688336863951,0.065,30787.0,30785.0,0.00048719]
[1688336864154,0.37840095,30786.0,30785.0,0.00048719]
[1688336864553,0.37840095,30786.0,30785.0,0.01948719]
[1688336864754,0.37840095,30786.0,30785.0,0.04948719]
[1688336864960,0.014,30787.0,30785.0,0.03048719]
[1688336865153,0.014,30787.0,30785.0,0.04997719]
[1688336865354,0.014,30787.0,30786.0,0.01884945]
[1688336865745,0.014,30787.0,30785.0,0.04948719]
[1688336865949,0.033488,30787.0,30785.0,0.04948719]
[1688336866152,0.37840095,30786.0,30785.0,0.01948719]
[1688336866454,0.39788995,30786.0,30785.0,0.01948719]
[1688336866762,0.39788995,30786.0,30780.0,0.2506]
[1688336866763,0.46288995,30786.0,30780.0,0.2506]
[1688336866953,0.3608,30782.0,30780.0,0.2506]
[1688336867150,0.05286053,30781.0,30780.0,0.2506]
[1688336867452,0.3608,30782.0,30780.0,0.2506]
[1688336867753,0.3608,30782.0,30780.0,0.26882969]
[1688336867956,0.3608,30782.0,30780.0,0.29944945]
[1688336868157,0.0065,30781.0,30780.0,0.2806]
[1688336868360,0.025992,30781.0,30780.0,0.078]
[1688336868657,0.07885253,30781.0,30780.0,0.1002]
[1688336869462,0.0065,30779.0,30778.0,0.00048731]
[1688336869657,0.02410095,30779.0,30778.0,0.00048731]
[1688336870452,0.00048731,30784.0,30778.0,0.01998131]
[1688336870650,0.00048731,30784.0,30783.0,0.655]
[1688336870856,0.00048731,30784.0,30783.0,0.67384945]
[1688336871653,0.00048731,30784.0,30783.0,0.69207914]
[1688336872058,0.00048731,30784.0,30783.0,0.67384945]
[1688336872252,0.00048731,30784.0,30779.0,0.3608]
[1688336872253,0.00048731,30784.0,30779.0,1.0159]
[1688336872454,0.00048731,30784.0,30778.0,0.05048731]
[1688336872455,0.0065,30782.0,30778.0,0.00048731]
[1688336872757,0.3608,30780.0,30778.0,0.00048731]
[1688336872962,0.0065,30779.0,30778.0,0.00048731]
[1688336873164,0.3608,30780.0,30778.0,0.00048731]
[1688336873756,0.01760095,30779.0,30778.0,0.00048731]
[1688336874854,0.01760095,30779.0,30769.0,0.05]
[1688336874855,0.59256053,30778.0,30769.0,0.05]
[1688336875160,0.0716,30771.0,30766.0,0.3608]
[1688336875360,0.0716,30771.0,30761.0,0.6527]
[1688336875361,0.3608,30769.0,30759.0,1.1774]
[1688336875550,0.0195,30768.0,30759.0,0.3608]
[1688336875755,0.0195,30768.0,30759.0,0.380306]
[1688336875955,0.00048758,30767.0,30761.0,0.70758309]
[1688336876161,0.0716,30771.0,30761.0,0.70758309]
[1688336876162,0.380296,30774.0,30766.0,0.3608]
[1688336876358,0.019496,30774.0,30769.0,0.3608]
[1688336876558,0.019496,30774.0,30770.0,0.03707914]
[1688336876764,0.049496,30774.0,30769.0,0.3608]
[1688336877067,0.03525958,30773.0,30770.0,0.03707914]
[1688336877266,0.03525958,30773.0,30769.0,0.3608]
[1688336877457,0.03525958,30773.0,30770.0,0.01884945]
[1688336877660,0.5417,30764.0,30753.0,0.94023]
[1688336877961,0.3608,30758.0,30753.0,0.0651]
[1688336878267,0.02589394,30761.0,30755.0,0.3608]
[1688336878656,0.03477211,30760.0,30755.0,0.36128768]
[1688336878849,0.01884945,30759.0,30756.0,0.00324851]
[1688336879056,0.01884945,30759.0,30755.0,0.36128768]
[1688336879057,0.03541992,30760.0,30755.0,0.36128768]
[1688336879368,0.3608,30762.0,30756.0,0.01707178]
[1688336879667,0.019506,30760.0,30758.0,0.3608]
[1688336879854,0.019506,30760.0,30759.0,0.00324851]
[1688336880053,0.3608,30762.0,30759.0,0.00324851]
[1688336880254,0.3608,30762.0,30758.0,0.3608]
[1688336880956,0.00048765,30763.0,30760.0,0.6551]
[1688336881259,0.00048765,30763.0,30761.0,0.37902969]
[1688336881468,3.4e-07,30763.0,30762.0,0.6551]
[1688336881763,3.4e-07,30763.0,30762.0,1.0159]
[1688336881963,3.4e-07,30763.0,30762.0,1.0373782]
[1688336882366,3.4e-07,30763.0,30762.0,0.3822782]
[1688336883165,3.4e-07,30763.0,30762.0,0.4017822]
[1688336883357,3.4e-07,30763.0,30762.0,1.1217822]
[1688336886264,3.4e-07,30763.0,30762.0,1.0567822]
[1688336886464,3.4e-07,30763.0,30762.0,0.36404851]
[1688336886766,0.058497,30771.0,30762.0,0.4258]
[1688336886958,0.019496,30776.0,30770.0,0.6551]
[1688336887165,0.01884945,30774.0,30770.0,0.6551]
[1688336887359,0.019496,30776.0,30768.0,0.0195]
[1688336887572,0.07749,30775.0,30769.0,0.3608]
[1688336887771,0.07797746,30775.0,30769.0,0.41568297]
[1688336887970,0.07797746,30775.0,30769.0,1.07078297]
[1688336888172,0.01948746,30775.0,30772.0,0.3608]
[1688336888370,0.01948746,30775.0,30773.0,0.00324851]
[1688336888664,0.01948746,30775.0,30772.0,0.37902969]
[1688336888665,0.00048746,30775.0,30772.0,0.3608]
[1688336888859,0.00048746,30775.0,30773.0,0.0214782]
[1688336889056,0.00048746,30775.0,30772.0,0.3608]
[1688336889256,0.00048746,30775.0,30773.0,0.0214782]
[1688336889462,0.00048746,30775.0,30772.0,0.3608]
[1688336889660,0.00048746,30775.0,30773.0,0.3608]
[1688336889870,0.00048746,30775.0,30773.0,0.37902969]
[1688336890059,0.00048746,30775.0,30773.0,0.3608]
[1688336890258,0.01933691,30775.0,30773.0,0.3608]
[1688336890568,0.00048746,30775.0,30773.0,0.3608]
[1688336890773,0.01884945,30774.0,30773.0,0.3608]
[1688336891365,0.00048746,30775.0,30773.0,0.3608]
[1688336891974,0.01884945,30774.0,30773.0,0.3608]
[1688336892180,0.58004545,30774.0,30769.0,0.00048746]
[1688336892475,0.01884945,30773.0,30769.0,0.00048746]
[1688336892658,0.3608,30773.0,30769.0,0.00048746]
[1688336892863,0.019497,30773.0,30772.0,0.3608]
[1688336893065,0.019497,30773.0,30769.0,0.00048746]
[1688336893066,0.03834645,30773.0,30769.0,0.00048746]
[1688336893276,0.019497,30773.0,30769.0,0.00048746]
[1688336893470,0.01884945,30772.0,30770.0,0.00324851]
[1688336893669,0.01884945,30772.0,30770.0,0.36404851]
[1688336893977,0.019497,30773.0,30771.0,0.00324851]
[1688336894168,0.019497,30773.0,30771.0,0.01822969]
[1688336894372,0.019497,30773.0,30772.0,0.00663279]
[1688336894569,0.019497,30773.0,30770.0,0.7216]
[1688336894570,0.03834645,30773.0,30770.0,0.7216]
[1688336894877,0.033497,30773.0,30769.0,0.00048746]
[1688336895373,0.01884945,30772.0,30770.0,0.3608]
[1688336895580,0.019498,30771.0,30770.0,0.3608]
[1688336895780,0.03834745,30771.0,30770.0,0.3608]
[1688336896275,0.03834745,30771.0,30769.0,0.00048746]
[1688336896477,0.01884945,30770.0,30769.0,0.00048746]
[1688336897176,0.01884945,30770.0,30769.0,0.36128746]
[1688336897578,0.019498,30771.0,30769.0,0.36128746]
[1688336897771,0.03834745,30771.0,30769.0,0.36128746]
[1688336897968,0.019498,30771.0,30769.0,0.36128746]
[1688336898472,0.019498,30771.0,30770.0,0.00324851]
[1688336898873,0.014,30773.0,30770.0,0.00324851]
[1688336899068,0.014,30773.0,30771.0,0.00324851]
[1688336899266,0.00048746,30775.0,30772.0,0.44402969]
[1688336899469,0.7988,30786.0,30772.0,0.44402969]
[1688336899470,0.47791082,30787.0,30779.0,0.065]
[1688336899668,0.11711082,30792.0,30786.0,0.7051]
[1688336899867,0.00048054,30795.0,30792.0,0.019485]
[1688336900175,0.00048054,30795.0,30794.0,1.0159]
[1688336900682,0.00048054,30795.0,30794.0,1.0373782]
[1688336900875,0.00048054,30795.0,30794.0,1.01914851]
[1688336901588,0.00048054,30795.0,30794.0,1.09177371]
[1688336901768,0.00048054,30795.0,30794.0,1.01914851]
[1688336902075,0.00048054,30795.0,30794.0,0.36404851]
[1688336902274,0.01932999,30795.0,30794.0,0.3608]
[1688336902482,0.03881299,30795.0,30791.0,0.3612871]
[1688336902668,0.01884945,30794.0,30791.0,0.3612871]
[1688336902871,0.01996354,30795.0,30791.0,0.3612871]
[1688336903071,0.0065,30794.0,30791.0,0.0004871]
[1688336903275,0.0065,30792.0,30791.0,0.0004871]
[1688336903571,0.025985,30792.0,30785.0,0.05]
[1688336904382,0.02647219,30792.0,30785.0,0.05048719]
[1688336904675,0.02647219,30792.0,30785.0,0.00048719]
[1688336904883,0.5417,30790.0,30785.0,0.00048719]
[1688336905081,0.58003645,30789.0,30785.0,0.00048719]
[1688336905375,0.019487,30789.0,30785.0,0.00048719]
[1688336905579,0.019487,30789.0,30787.0,0.3608]
[1688336905782,0.03833645,30789.0,30787.0,0.3608]
[1688336905978,0.019487,30789.0,30785.0,0.00048719]
[1688336906281,0.02534945,30788.0,30785.0,0.00048719]
[1688336906578,0.019488,30787.0,30785.0,0.00048719]
[1688336906884,0.03833845,30786.0,30785.0,0.00048719]
[1688336907780,0.58003845,30786.0,30780.0,0.8176]
[1688336907975,0.58003845,30786.0,30778.0,0.3608]
[1688336907976,0.3608,30784.0,30778.0,0.3608]
[1688336908167,0.019491,30783.0,30778.0,0.3608]
[1688336908368,0.01884945,30782.0,30778.0,0.3608]
[1688336908579,0.019492,30782.0,30778.0,0.3608]
[1688336908877,0.01884945,30781.0,30777.0,0.00048733]
[1688336909178,0.019492,30782.0,30777.0,0.00048733]
[1688336909377,0.01884945,30781.0,30778.0,0.02320219]
[1688336909582,0.019492,30782.0,30778.0,0.02320219]
[1688336909784,0.01884945,30781.0,30778.0,0.02320219]
[1688336909972,0.019492,30782.0,30778.0,0.02520219]
[1688336910176,0.00048733,30783.0,30779.0,0.3822782]
[1688336910474,0.00048733,30783.0,30782.0,0.3608]
[1688336910673,0.00048733,30783.0,30782.0,0.36404851]
[1688336910869,0.00048733,30783.0,30782.0,0.38529602]
[1688336911074,0.00048733,30783.0,30782.0,1.04039602]
[1688336911382,0.00048733,30783.0,30782.0,1.05988702]
[1688336911595,0.019487,30789.0,30782.0,1.07811671]
[1688336911775,0.019487,30789.0,30787.0,0.3608]
[1688336911977,0.019487,30789.0,30788.0,0.00324851]
[1688336912172,0.019487,30789.0,30788.0,0.02081144]
[1688336912378,0.17556682,30793.0,30788.0,1.09110695]
[1688336912589,0.00048719,30792.0,30789.0,0.00324851]
[1688336912895,0.00048719,30792.0,30790.0,0.03494792]
[1688336913186,0.00048719,30792.0,30791.0,0.36404851]
[1688336913381,0.00048719,30792.0,30791.0,0.39899611]
[1688336913586,0.00048719,30792.0,30791.0,0.40025242]
[1688336913790,0.00048054,30795.0,30792.0,0.00324851]
[1688336913979,0.00048054,30795.0,30794.0,1.0159]
[1688336914178,0.00017156,30798.0,30794.0,1.085384]
[1688336914478,0.00017156,30798.0,30797.0,1.0159]
[1688336914882,0.00017156,30798.0,30797.0,0.01279363]
[1688336915479,0.01965256,30798.0,30797.0,0.00954512]
[1688336915686,0.03850201,30798.0,30797.0,0.3608]
[1688336915881,0.03850201,30798.0,30797.0,0.0136919]
[1688336916081,0.03850201,30798.0,30794.0,0.41128705]
[1688336916082,0.03850201,30798.0,30794.0,0.36128705]
[1688336916282,0.01884945,30797.0,30794.0,0.00048705]
[1688336916488,0.019482,30796.0,30795.0,0.01357462]
[1688336916687,0.03833145,30796.0,30795.0,0.01357462]
[1688336916991,0.03833145,30796.0,30794.0,0.00048705]
[1688336917188,0.03833145,30796.0,30795.0,0.0136673]
[1688336917375,0.019482,30796.0,30794.0,0.36128705]
[1688336917575,0.019482,30796.0,30795.0,0.01366696]
[1688336917780,0.019482,30796.0,30795.0,0.01691547]
[1688336917976,0.019482,30796.0,30795.0,0.00324851]
[1688336918178,0.019482,30796.0,30795.0,0.01691515]
[1688336918388,0.09167656,30798.0,30795.0,0.66961515]
[1688336918389,0.04297156,30798.0,30795.0,0.66961515]
[1688336918686,0.04297156,30798.0,30796.0,0.00324851]
[1688336918889,0.01884945,30797.0,30794.0,0.36128705]
[1688336919187,0.019482,30796.0,30794.0,0.00048705]
[1688336919390,0.561182,30796.0,30794.0,0.00048705]
[1688336919787,0.01884945,30795.0,30794.0,0.00048705]
[1688336919983,0.58003245,30795.0,30794.0,0.00048705]
[1688336920785,0.58003245,30795.0,30785.0,1.0158]
[1688336920786,0.928483,30795.0,30785.0,0.019489]
[1688336921092,0.3608,30789.0,30785.0,0.019489]
[1688336921298,0.03833745,30788.0,30785.0,0.019489]
[1688336921485,0.019488,30788.0,30785.0,0.019489]
[1688336921798,0.01884945,30787.0,30783.0,0.05048723]
[1688336922000,0.019489,30786.0,30783.0,0.05048723]
[1688336922294,0.019489,30786.0,30783.0,0.05373574]
[1688336922491,0.019489,30786.0,30783.0,0.05048723]
[1688336922492,0.03833845,30786.0,30783.0,0.05048723]
[1688336922792,0.021489,30786.0,30783.0,0.05048723]
[1688336922984,0.04033845,30786.0,30783.0,0.05048723]
[1688336923181,0.04033845,30786.0,30783.0,0.07322674]
[1688336923481,0.002,30786.0,30785.0,0.3608]
[1688336923686,0.002,30786.0,30785.0,0.38353751]
[1688336924395,0.002,30786.0,30785.0,0.40371819]
[1688336925390,0.02084945,30786.0,30785.0,0.36091819]
[1688336925599,0.6028,30786.0,30785.0,0.03966968]
[1688336925986,0.6028,30786.0,30785.0,0.40046968]
[1688336925987,0.002,30786.0,30785.0,0.40046968]
[1688336926701,0.002,30786.0,30785.0,0.42194788]
[1688336927292,0.00048723,30790.0,30786.0,0.0214782]
[1688336927494,0.00048723,30790.0,30789.0,0.380287]
[1688336927698,0.00048723,30790.0,30789.0,0.38353551]
[1688336929497,0.1170622,30796.0,30790.0,0.05764402]
[1688336929700,0.1170622,30796.0,30789.0,1.046087]
[1688336929701,0.1170622,30796.0,30794.0,0.3608]
[1688336929891,0.01965256,30798.0,30794.0,0.3608]
[1688336930096,0.01965256,30798.0,30795.0,0.00324851]
[1688336930396,0.00017156,30798.0,30795.0,0.019483]
[1688336930693,0.01902101,30798.0,30795.0,0.019483]
[1688336930893,0.01965256,30798.0,30795.0,0.019483]
[1688336931597,0.01884945,30797.0,30794.0,0.3608]
[1688336931797,0.019483,30796.0,30793.0,0.00048707]
[1688336932097,0.561183,30796.0,30793.0,0.00048707]
[1688336932397,0.019484,30794.0,30793.0,0.00048707]
[1688336932791,0.58653345,30794.0,30793.0,0.00048707]
[1688336932992,1.59773345,30794.0,30793.0,0.00048707]
[1688336933603,0.58653345,30794.0,30793.0,0.00048707]
[1688336936495,0.58003345,30794.0,30793.0,0.00048707]
[1688336936999,0.03833345,30794.0,30793.0,0.00048707]
[1688336937303,0.1755122,30796.0,30793.0,0.02321958]
[1688336937505,0.05845,30796.0,30795.0,0.3608]
[1688336937694,0.05845,30796.0,30795.0,0.36404851]
[1688336938298,0.03833145,30797.0,30795.0,0.00324851]
[1688336938604,0.03833145,30797.0,30796.0,0.3608]
[1688336939098,0.019482,30797.0,30796.0,0.3608]
[1688336939489,0.019482,30797.0,30796.0,0.010983]
[1688336939695,0.019482,30797.0,30794.0,0.019484]
[1688336939896,0.01884945,30796.0,30794.0,0.019484]
[1688336940601,0.01884945,30796.0,30789.0,1.2427]
[1688336940602,0.5417,30790.0,30784.0,0.3608]
[1688336940809,0.9025,30786.0,30782.0,0.3608]
[1688336941002,0.5417,30784.0,30782.0,0.3608]
[1688336941204,0.019491,30783.0,30782.0,0.3608]
[1688336941705,0.03834045,30783.0,30782.0,0.3608]
[1688336943712,1.59774045,30783.0,30779.0,0.00048729]
[1688336944009,0.01884945,30782.0,30779.0,0.00048729]
[1688336944211,0.019492,30781.0,30779.0,0.00048729]
[1688336944510,0.01884945,30780.0,30779.0,0.00048729]
[1688336944709,0.03834245,30780.0,30779.0,0.00048729]
[1688336945905,1.59904245,30780.0,30779.0,0.00048729]
[1688336946111,1.59904245,30780.0,30772.0,0.05]
[1688336946404,0.9025,30777.0,30773.0,0.01058319]
[1688336946598,0.019496,30774.0,30773.0,0.01058319]
[1688336946799,0.019494,30778.0,30773.0,0.39088019]
[1688336947004,0.019494,30778.0,30777.0,0.3608]
[1688336947206,0.019494,30778.0,30777.0,0.00324851]
[1688336947409,0.019494,30778.0,30772.0,0.1154874]
[1688336947606,0.019494,30778.0,30773.0,0.01056092]
[1688336947796,0.01884945,30777.0,30773.0,0.01056092]
[1688336948005,0.561195,30776.0,30773.0,0.01056092]
[1688336948301,0.01884945,30775.0,30773.0,0.01056092]
[1688336948501,0.019496,30774.0,30773.0,0.01056092]
[1688336948700,0.03834545,30774.0,30773.0,0.01056092]
[1688336949197,0.019496,30774.0,30773.0,0.01380943]
[1688336949607,0.019496,30774.0,30773.0,0.01056092]
[1688336950011,0.03834545,30774.0,30773.0,0.01056092]
[1688336952011,0.019496,30774.0,30773.0,0.01056092]
[1688336952312,0.019496,30774.0,30763.0,0.31]
[1688336952313,1.0,30773.0,30763.0,0.31]
[1688336952508,1.0,30773.0,30761.0,0.019505]
[1688336952509,0.6552,30765.0,30761.0,0.065]
[1688336952708,0.01884945,30764.0,30763.0,0.019503]
[1688336953006,0.019502,30765.0,30763.0,0.019503]
[1688336953207,0.019502,30766.0,30763.0,0.019503]
[1688336953914,0.019502,30766.0,30764.0,0.00324851]
[1688336954106,0.019502,30766.0,30765.0,0.3608]
[1688336954416,0.019502,30766.0,30765.0,0.36404851]
[1688336954613,0.019502,30766.0,30765.0,0.3608]
[1688336955303,0.019502,30766.0,30765.0,0.36404851]
[1688336955814,0.019502,30766.0,30765.0,0.3608]
[1688336956211,0.03835145,30766.0,30765.0,0.3608]
[1688336956509,0.00048757,30768.0,30765.0,0.4258]
[1688336956811,0.02554985,30773.0,30770.0,0.05]
[1688336957010,0.02554985,30773.0,30771.0,0.47177265]
[1688336957011,4.985e-05,30773.0,30771.0,0.47177265]
[1688336957215,0.058485,30778.0,30771.0,0.43469351]
[1688336957405,0.058485,30778.0,30777.0,0.3608]
[1688336958409,0.08417208,30778.0,30777.0,0.3608]
[1688336958715,0.09977304,30778.0,30777.0,0.3608]
[1688336960412,0.08417208,30778.0,30777.0,0.3608]
[1688336961010,0.08417208,30778.0,30777.0,0.380295]
[1688336962004,0.09977304,30778.0,30777.0,0.380295]
[1688336962422,0.09977304,30778.0,30777.0,0.3608]
[1688336963212,0.64797304,30778.0,30774.0,0.00048737]
[1688336963420,0.6513,30775.0,30774.0,0.00048737]
[1688336963619,0.670796,30775.0,30774.0,0.00048737]
[1688336964023,0.68639696,30775.0,30774.0,0.00048737]
[1688336967028,0.68639696,30775.0,30766.0,0.065005]
[1688336967029,0.01560096,30774.0,30767.0,0.409301]
[1688336967222,0.409541,30776.0,30767.0,0.409301]
[1688336967223,0.3608,30772.0,30767.0,0.409301]
[1688336967419,0.019498,30771.0,30767.0,0.084501]
[1688336967626,0.019498,30771.0,30763.0,0.4258]
[1688336967627,0.6552,30769.0,30763.0,0.4258]
[1688336967812,0.6513,30766.0,30763.0,0.065]
[1688336968125,0.6513,30766.0,30762.0,0.4108]
[1688336968126,0.57680296,30765.0,30762.0,0.05]
[1688336968315,0.561202,30765.0,30762.0,0.05]
[1688336968514,0.01560096,30764.0,30762.0,0.05]
[1688336968715,0.019503,30764.0,30762.0,0.05]
[1688336968919,0.019503,30764.0,30762.0,0.4108]
[1688336969120,0.03510396,30764.0,30762.0,0.4108]
[1688336969613,0.019503,30764.0,30762.0,0.4108]
[1688336970015,0.019503,30764.0,30763.0,0.03835345]
[1688336970249,0.01998757,30768.0,30763.0,0.10335345]
[1688336970423,0.01998757,30768.0,30767.0,0.3608]
[1688336970723,0.00048757,30768.0,30767.0,0.37964945]
[1688336971116,0.00048757,30768.0,30767.0,0.45354596]
[1688336971321,0.56769386,30773.0,30767.0,0.86049651]
[1688336971523,0.56769386,30773.0,30770.0,0.3608]
[1688336972514,0.01560096,30772.0,30770.0,0.3608]
[1688336972714,0.58719086,30773.0,30770.0,0.3608]
[1688336972918,0.01560096,30772.0,30768.0,0.00048746]
[1688336973120,0.6552,30769.0,30768.0,0.00048746]
[1688336973319,0.6747,30769.0,30768.0,0.00048746]
[1688336973630,0.69030096,30769.0,30768.0,0.00048746]
[1688336973821,0.03510096,30769.0,30768.0,0.00048746]
[1688336975323,0.57680096,30769.0,30768.0,0.00048746]
[1688336975529,1.22620096,30769.0,30768.0,0.00048746]
[1688336975927,1.22620096,30769.0,30762.0,0.4758]
[1688336975928,1.2171,30769.0,30762.0,0.4758]
[1688336976127,0.671203,30764.0,30762.0,0.115]
[1688336976324,0.01560096,30763.0,30762.0,0.115]
[1688336976626,0.01560096,30763.0,30762.0,0.4758]
[1688336977023,0.03510396,30764.0,30762.0,0.4758]
[1688336977226,0.019503,30764.0,30762.0,0.4758]
[1688336977735,0.03510396,30764.0,30762.0,0.4758]
[1688336977927,0.019503,30764.0,30762.0,0.4758]
[1688336978327,0.67080096,30763.0,30762.0,0.115]
[1688336979035,0.67080096,30763.0,30762.0,0.4758]
[1688336979422,0.69030496,30763.0,30762.0,0.3608]
[1688336979625,0.69127999,30763.0,30762.0,0.00477165]
[1688336980024,1.23947999,30763.0,30759.0,0.00048761]
[1688336980238,1.572405,30760.0,30759.0,0.00048761]
[1688336980441,1.211605,30760.0,30759.0,0.00048761]
[1688336980829,1.22720596,30760.0,30759.0,0.00048761]
[1688336981837,1.22720596,30760.0,30752.0,0.3608]
[1688336981838,0.01560096,30759.0,30752.0,0.4259]
[1688336982140,0.6513,30755.0,30752.0,0.4259]
[1688336982347,0.6513,30755.0,30752.0,0.3608]
[1688336982348,0.03510996,30754.0,30752.0,0.3608]
[1688336982542,0.019509,30754.0,30752.0,0.3608]
[1688336983144,0.03511096,30753.0,30752.0,0.3608]
[1688336983324,0.03511096,30753.0,30750.0,0.00033446]
[1688336983527,1.03160096,30752.0,30750.0,0.00033446]
[1688336983832,0.019511,30751.0,30750.0,0.00033446]
[1688336984028,0.03511196,30751.0,30750.0,0.00033446]
[1688336984437,0.03511196,30751.0,30750.0,0.01305148]
[1688336984628,0.57681196,30751.0,30750.0,0.01305148]
[1688336984834,0.58331196,30751.0,30750.0,0.01305148]
[1688336985130,0.57681196,30751.0,30750.0,0.01305148]
[1688336985443,0.058532,30753.0,30750.0,0.01305148]
[1688336985444,0.08425765,30753.0,30750.0,0.01305148]
[1688336985830,1.28115765,30753.0,30750.0,0.01305148]
[1688336986133,0.019511,30751.0,30750.0,0.01305148]
[1688336986435,0.03511196,30751.0,30750.0,0.01305148]
[1688336988825,0.57681196,30751.0,30750.0,0.01305148]
[1688336989238,0.58331196,30751.0,30750.0,0.01305148]
[1688336990127,1.5417,30749.0,30742.0,0.0651]
[1688336990344,1.1934,30745.0,30742.0,0.0651]
[1688336990642,0.03511696,30744.0,30743.0,0.01211747]
[1688336990845,0.57681696,30744.0,30743.0,0.01211747]
[1688336991231,0.019516,30744.0,30743.0,0.01211747]
[1688336991741,1.217116,30744.0,30743.0,0.01211747]
[1688336991938,1.210616,30744.0,30737.0,0.0651]
[1688336992143,0.6552,30738.0,30737.0,0.0651]
[1688336992437,0.69031996,30738.0,30737.0,0.4259]
[1688336992842,0.69031996,30738.0,30735.0,0.05439551]
[1688336992843,0.5417,30736.0,30735.0,0.05439551]
[1688336993136,0.47142258,30736.0,30735.0,0.3608]
[1688336993343,0.02391361,30736.0,30735.0,0.3608]
[1688336993541,0.02391361,30736.0,30735.0,0.43404496]
[1688336994040,0.02391361,30736.0,30735.0,0.3608]
[1688336994643,0.62171361,30736.0,30735.0,0.37964945]
[1688336995144,0.0065,30732.0,30728.0,0.02597424]
[1688336995341,0.6003,30729.0,30728.0,0.076026]
[1688336995539,0.65585812,30733.0,30729.0,0.0065]
[1688336995845,0.65585812,30733.0,30730.0,0.08787251]
[1688336996039,0.67470757,30733.0,30730.0,0.08787251]
[1688336996342,0.65585812,30733.0,30730.0,0.084624]
[1688336996536,0.67470757,30733.0,30731.0,0.00324851]
[1688336996732,0.67470757,30733.0,30730.0,0.084624]
[1688336997144,0.03837345,30732.0,30730.0,0.084624]
[1688336997349,0.019524,30732.0,30730.0,0.084624]
[1688336997534,0.62074945,30731.0,30728.0,0.1151]
[1688336997738,0.6019,30729.0,30728.0,0.1151]
[1688336998040,0.64027445,30729.0,30728.0,0.05]
[1688336998246,0.64027445,30729.0,30726.0,0.0651]
[1688336998434,0.980426,30727.0,30726.0,0.0651]
[1688336998750,0.99927545,30727.0,30726.0,0.0651]
[1688336999345,0.99927545,30727.0,30724.0,0.1151]
[1688336999546,0.01884945,30726.0,30724.0,0.1151]
[1688336999744,0.980426,30727.0,30726.0,0.00017408]
[1688336999941,0.978126,30727.0,30726.0,0.00017408]
[1688337000139,0.99697545,30727.0,30726.0,0.00017408]